Cogmind - Beta 13 @@@ ROGUE MODE // 2024.07.06 @ 19:09:58 Player: sinsee Result: Destroyed by G-47 Trooper with Particle Gun Performance ------------- Evolutions (1) 500 Regions Visited (2) 400 Robots Destroyed (22) 110 Value Destroyed (485) 485 Prototype IDs (0) 0 Alien Tech Used (0) 0 Bonus (0) 0 TOTAL SCORE: 1495 Bonus ------- None Cogmind --------- Core Integrity 0/400 Matter 151/450 Energy 100/100 System Corruption 7% Temperature Cool (9) Movement Core (100) Ox1 Location -9/Materials Parts ------- > --- POWER (1) -------- (None) > --- PROPULSION (4) --- (None) > --- UTILITY (2) ------ Heat Sink Large Matter Pod > --- WEAPON (2) ------- (None) > --- INVENTORY (5) ---- Improved Ion Engine Peak State ------------ > --- POWER ------------ Improved Ion Engine > --- PROPULSION ------- Hover Unit Hover Unit Hover Unit > --- UTILITY ---------- Small Storage Unit Sensor Array > --- WEAPON ----------- Light Assault Rifle Light Assault Rifle > --- INVENTORY -------- Heat Sink Large Matter Pod EM Pulse Gun [Rating: 9] Favorites ----------- Power Light Ion Engine Engine Light Ion Engine Propulsion Hover Unit Treads Light Treads Leg Aluminum Leg Hover Unit Hover Unit Utility Small Storage Unit Device Sensor Array Storage Small Storage Unit Weapon Assault Rifle Energy Gun EM Pulse Gun Ballistic Gun Assault Rifle Build | -11 -10 -9 ------- Run | Yrd Mat Mat Slots Evolved 2 | . . 2 Power . | . . . Propulsion 2 | . . 2 Utility . | . . . Weapon . | . . . Parts Attached 31 | 7 11 13 Power 5 | 1 1 3 Engine 5 | 1 1 3 Core . | . . . Reactor . | . . . Propulsion 8 | 2 5 1 Treads 2 | . 2 . Leg 3 | 2 1 . Wheel . | . . . Hover 3 | . 2 1 Flight . | . . . Utility 6 | 1 2 3 Device 3 | . 2 1 Storage 3 | 1 . 2 Processor . | . . . Hackware . | . . . Protection . | . . . Artifact . | . . . Weapon 12 | 3 3 6 Energy Gun 4 | 1 1 2 Energy Cannon . | . . . Ballistic Gun 8 | 2 2 4 Ballistic Cannon . | . . . Launcher . | . . . Special Weapon . | . . . Impact Weapon . | . . . Slashing Weapon . | . . . Piercing Weapon . | . . . Special Melee Weapon . | . . . Unidentified Prototypes . | . . . Parts Lost 13 | . 1 12 Power 2 | . . 2 Propulsion 3 | . . 3 Utility 2 | . . 2 Weapon 6 | . 1 5 Highest Loss Streak 7 | . 1 7 To Critical Strikes . | . . . Average Slot Usage (%) 83 | . 94 61 Engine 12 | . 14 8 Treads 4 | . 7 . Leg 9 | . 14 . Hover 10 | . 7 18 Device 8 | . 9 7 Storage 12 | . 14 11 Energy Gun 2 | . 2 1 Ballistic Gun 21 | . 24 15 Naked Turns 2 | . . 2 Heaviest Build 17 | 12 13 17 Greatest Support 40 | 20 40 18 Greatest Overweight (x) 3 | 3 2 3 Average Overweight (x) . | . . . Largest Inventory Capacity 8 | 8 8 8 Average Capacity 7 | 7 8 7 Most Carried 8 | 4 8 7 Average Carried 5 | 2 5 5 Final Capacity 8 | 8 8 5 Final Carried 8 | 4 8 1 Class Distribution -------------------- 67% | Mutant 32% | Scavenger-Mutant Dominant Class ---------------- Mutant | -10/Materials Mutant | -9/Materials Resources | -11 -10 -9 ----------- Run | Yrd Mat Mat Matter Collected 596 | 183 363 50 Remotely . | . . . Salvage Created 687 | . 439 248 Parts 48 | . 35 13 Haulers Intercepted . | . . . Recyclers Shooed 2 | . 2 . Parts Field Recycled . | . . . Retrieved Matter . | . . . Parts Self-Destructed . | . . . Prevented . | . . . Kills | -11 -10 -9 ------- Run | Yrd Mat Mat Combat Hostiles Destroyed 18 | . 11 7 Guns 18 | . 11 7 Classes Destroyed 5 | . 4 1 Recycler 2 | . 1 1 Watcher 2 | . 2 . Swarmer 9 | . 5 4 Grunt 7 | . 6 1 Sentry 2 | . . 2 Best Kill Streak 6 | . 4 6 Combat Bots Only 5 | . 4 5 Max Kills in Single Turn 2 | . 2 2 Gunslinging . | . . . Exploded . | . . . Melee . | . . . Uniques/NPCs Destroyed . | . . . Combat | -11 -10 -9 -------- Run | Yrd Mat Mat Hostile Shots Fired 236 | . 69 167 Missed 72 | . 18 54 Damage Taken 1809 | . 534 1275 Core 484 | . 79 405 Absorbed by Shields . | . . . Core Remaining (%) 84 | 100 68 . Volleys Fired 76 | . 44 32 Largest 2 | . 2 2 Hottest 76 | . 60 76 Shots Fired 138 | . 83 55 Gun 138 | . 83 55 Cannon . | . . . Launcher . | . . . Special . | . . . Kinetic 122 | . 75 47 Thermal 5 | . . 5 Explosive . | . . . Electromagnetic 11 | . 8 3 Robot Hit Streak 10 | . 10 6 Robot Miss Streak 7 | . 7 4 Penetration Max . | . . . Secondary Targets 5 | . 1 4 Max Gunslinging Chain 1 | . 1 1 Shots Hit Robots 76 | . 46 30 Core Hits 39 | . 23 16 Critical Kills . | . . . Critical Parts Destroyed . | . . . Critical Strikes . | . . . Melee Attacks . | . . . Impact . | . . . Slashing . | . . . Piercing . | . . . Sneak Attacks . | . . . Combat Hostiles . | . . . Follow-up Attacks . | . . . Damage Inflicted 1006 | . 620 386 Guns 983 | . 601 382 Cannons . | . . . Explosions . | . . . Melee . | . . . Ramming 23 | . 19 4 Kinetic 818 | . 514 304 Thermal 44 | . . 44 Explosive . | . . . Electromagnetic 121 | . 87 34 Impact . | . . . Slashing . | . . . Piercing . | . . . Highest Corruption 7 | . . 7 Average Corruption 5 | . . 5 Corruption Purged . | . . . Corruption Blocked . | . . . Effects 4 | . . 4 Message Errors 1 | . . 1 Heat Flow Errors 1 | . . 1 Parts Rejected 1 | . . 1 Weapon Failures 1 | . . 1 Overload Shots . | . . . Overflow Damage . | . . . Projectiles . | . . . Explosions . | . . . Melee . | . . . Knockbacks . | . . . Impact . | . . . Kinetic . | . . . Secondary . | . . . Self-Inflicted Damage 2 | . . 2 Shots . | . . . Rammed 2 | . . 2 Targets Rammed 6 | . 4 2 Kicked 4 | . 4 . Crushed . | . . . Highest Temperature 130 | . 10 130 Average Temperature 36 | . 5 43 Received Heat Transfer 639 | . 213 426 Siege Activations . | . . . Robots Corrupted . | . . . Combat Hostiles . | . . . Parts Fried . | . . . Impact Corruptions . | . . . Robots Melted . | . . . Combat Hostiles . | . . . Parts Melted . | . . . Heat Transferred 111 | . . 111 Parts Sabotaged . | . . . Parts Stolen . | . . . Parts Stripped . | . . . Power Chain Reactions . | . . . Alert | -11 -10 -9 ------- Run | Yrd Mat Mat Peak Influence 343 | . 343 259 Initial 79 | . . 79 Average 162 | . 187 155 Maximum Alert Level 1 | . 1 1 Low Security (%) 57 | 100 52 56 Level 1 42 | . 47 43 Level 2 . | . . . Level 3 . | . . . Level 4 . | . . . Level 5 . | . . . High Security . | . . . Max Security . | . . . Squads Dispatched 3 | . 2 1 Investigation 1 | . 1 . Extermination . | . . . Reinforcement 2 | . 1 1 Assault . | . . . Garrison . | . . . Intercept . | . . . Searches Triggered . | . . . Construction Impeded . | . . . Haulers Reinforced . | . . . Active Scanning Responses . | . . . Cargo Convoy Interrupts . | . . . Stealth | -11 -10 -9 --------- Run | Yrd Mat Mat Distress Signals 4 | . 2 2 Communications Jammed . | . . . Distress Signals . | . . . Times Spotted 39 | . 22 17 Peak Tracking Total 11 | . 7 11 Tactical Retreats 2 | . 1 1 Traps | -11 -10 -9 ------- Run | Yrd Mat Mat Traps Triggered 1 | . 1 . Indirectly . | . . . Trap Hack Attempts . | . . . Triggered . | . . . Disarmed . | . . . Reprogrammed . | . . . Reused . | . . . Traps Extracted . | . . . Installed . | . . . Triggered . | . . . Machines | -11 -10 -9 ---------- Run | Yrd Mat Mat Machines Disabled 1 | . . 1 Max in Single Turn 1 | . . 1 Machines Repaired . | . . . Machines Dismantled . | . . . Machines Sabotaged . | . . . Overloaded Fab Kills . | . . . Hacking | -11 -10 -9 --------- Run | Yrd Mat Mat Machines Accessed 2 | . 1 1 Terminals 1 | . 1 . Fabricators . | . . . Repair Stations . | . . . Recycling Units 1 | . . 1 Scanalyzers . | . . . Garrison Access . | . . . Total Hacks 4 | . 3 1 Successful 2 | . 1 1 Failed 2 | . 2 . Catastrophic . | . . . Database Lockouts . | . . . Manual . | . . . Terminals 3 | . 3 . Fabricators . | . . . Repair Stations . | . . . Recycling Units 1 | . . 1 Scanalyzers . | . . . Garrison Access . | . . . Terminal Hacks 1 | . 1 . Emergency Access Points 1 | . 1 . Fabricator Hacks . | . . . Repair Station Hacks . | . . . Recycling Unit Hacks 1 | . . 1 Retrieve Matter 1 | . . 1 Scanalyzer . | . . . Garrison Access Hacks . | . . . Unauthorized Hacks . | . . . Terminals . | . . . Fabricators . | . . . Repair Stations . | . . . Recycling Units . | . . . Scanalyzers . | . . . Garrison Access . | . . . Data Cores Recovered . | . . . Used . | . . . Hacking Detections 2 | . 1 1 Full Trace Events 1 | . 1 . Feedback Events . | . . . Feedback Blocked . | . . . Robot Schematics Acquired . | . . . Robots Built . | . . . Authchips . | . . . Time . | . . . Total Robot Build Rating . | . . . Part Schematics Acquired . | . . . Parts Built . | . . . Authchips . | . . . Time . | . . . Total Part Build Rating . | . . . Parts Repaired . | . . . Time . | . . . Parts Recycled . | . . . Recycled Matter . | . . . Retrieved Matter . | . . . Retrieved Components . | . . . Parts Scanalyzed . | . . . Part Schematics Acquired . | . . . Parts Damaged . | . . . Bothacking | -11 -10 -9 ------------ Run | Yrd Mat Mat Used RIF Installer . | . . . Robots Hacked . | . . . Non-combat . | . . . Combat . | . . . Robot Hacks Applied . | . . . Relay Couplers Released . | . . . Fabnet Peak Effective % . | . . . Robots Rewired . | . . . Allies Hacked . | . . . Hacks Repelled . | . . . Allies | -11 -10 -9 -------- Run | Yrd Mat Mat Total Allies . | . . . Largest Group . | . . . Highest-Rated Group . | . . . Highest-Rated Ally . | . . . Total Orders . | . . . Ally Attacks . | . . . Total Damage . | . . . Kills . | . . . Allies Corrupted . | . . . Allies Melted . | . . . Intel | -11 -10 -9 ------- Run | Yrd Mat Mat Robot Analysis Total . | . . . Derelict Logs Recovered . | . . . Drone Launches . | . . . Drone Recoveries . | . . . Exploration | -11 -10 -9 ------------- Run | Yrd Mat Mat Turns Passed 861 | 69 521 271 Spaces Moved 622 | 46 374 202 Core 43 | 7 . 36 Treads 46 | . 46 . Legs 174 | 39 135 . Wheels . | . . . Hover 359 | . 193 166 Flight . | . . . Fastest Speed 50 | 50 56 50 Average Speed 87 | 121 93 67 Slowest Speed 200 | 200 180 200 Overloaded Moves . | . . . Propulsion Burnouts . | . . . Robots Hopped . | . . . Cave-ins Triggered . | . . . Exploration Rate (%) 23 | 4 41 25 Regions Visited 2 Branch Regions . Pre-discovered Areas . | . . . Known Exits Taken . | . . . Unknown Exits Taken 2 | 1 1 . Scrap Searched . | . . . Spaces Dug . | . . . Terrain Destroyed . | . . . Melee . | . . . Projectile . | . . . AOE . | . . . Terrain Rammed . | . . . Walls Destroyed . | . . . Machines Disabled . | . . . Actions | -11 -10 -9 --------- Run | Yrd Mat Mat Total 801 | 56 461 284 Wait 42 | . 17 25 Move 620 | 45 373 202 Hop . | . . . Pick Up 11 | 3 6 2 Fast Attach 15 | 7 3 5 Attach 10 | . 3 7 Detach 4 | 1 1 2 Swap 6 | . 5 1 Drop 11 | . 5 6 Fire 76 | . 44 32 Melee . | . . . Ram 2 | . . 2 Kick 4 | . 4 . Crush . | . . . Escape Stasis . | . . . Rewire . | . . . Trap . | . . . Miscellaneous . | . . . Route ------- -11/Scrapyard -10/Materials -9/Materials (discovered 1 exit: [*Min]) History --------- Turn | Location | Event 20 | -11/Scrapyard | Discovered new exit (range 16) 70 | -11/Scrapyard | Entered Materials 318 | -10/Materials | Build established: Mutant 536 | -10/Materials | Discovered new exit (range 3) 591 | -10/Materials | Entered another Materials area 591 | -9/Materials | Evolved 2 slots: Propulsion x2 698 | -9/Materials | Discovered new exit (range 15) 796 | -9/Materials | Lost 7 parts (1p3n1u2w) 814 | -9/Materials | Core integrity fell below 50% 832 | -9/Materials | Core integrity fell below 20% 852 | -9/Materials | Lost 4 parts (1u3w) 862 | -9/Materials | Destroyed by G-47 Trooper with Particle Gun Last Messages --------------- 00821_ System corrupted by crushing effect (+2). 00821_ Knocked back. 00822_ K-01 Serf cleans the Atomic Centrifuge. 00826_ M-13 Machinist repairs R-06 Scavenger. 00826_ K-01 Serf cleans the Atomic Centrifuge. 00836_ K-01 Serf cleans the Scanalyzer. 00836_ K-01 Serf collects debris. 00839_ System corrupted: Heat flow error (+162). 00839_ K-01 Serf cleans the Atomic Centrifuge. 00840_ K-01 Serf cleans the Scanalyzer. 00842_ K-01 Serf cleans the Atomic Centrifuge. 00850_ M-13 Machinist repairs B-36 Bruiser. 00852_ K-01 Serf cleans the Atomic Centrifuge. 00853_ K-01 Serf cleans the Scanalyzer. 00857_ 6F2AL<0 ,IQ7C E /RJOTHJFJGYUMSF|NODP 00857_ K-01 Serf cleans the Atomic Centrifuge. 00860_ Slammed into G-47 Trooper. 00860_ Imp. Ion Engine destroyed. 00860_ Critical hit (Burn: +37). 00862_ Slammed into G-47 Trooper. Map ----- +----------------------------------------------------+ | | | | | | | | | | | ?????????????????????????????????????????????????? | | ?????????????????????????????????????????????????? | | ?????????????????????????????????????????????????? | | ?????????????????????????????????????????????????? | | ?????????????????????????????????????????????????? | | ?????????????????????????????????????????????????? | | ?????????????????????????????????????????????????? | | ?????????????????????????????????????????????????? | | ?????????????????????????????????????????????????? | | ?????????????????????????????????????????????????? | | ?????????????????????????????????????????????????? | | ?????????????????????????????????????????????????? | | ?????????????????????????????????????????????????? | | ??????????????????????????????????????????? ????? | | ??????????????????????????????####???????" ???? | | ???????????????#????????????? ????????" ????< | | ???????????????# ?????????? """ ???????"" ??? | | ???????????##### ######## """???????? ??? | | ?????????? # "?????????? ??? | | ?????????? g/ ???????????? ### | | ?????????? t@#????????????? | | ?????????????????######## #?????????????? | | ????????????????????????# #??????????????Y" | | ????????????????????????# #???????????????" | | ???????????????????######g#######?????????# | | ???????????????????# % #?????????# | | ???????????????????# """ "" "" #???????#?# | | ???????????????????# """ ""S"" #######+### | | ???????????????????# """k"""" # # | | ???????????????????# k% # # #### | | ???????????????????#######+###### # #??? | | ????????????? ####### #??# % % + #### | | ????????????? #### % %! # # | | ???????????? /%% """" # # | | ???????????? #### """"" # # "" | | ???????????? ####### #??# """"" # # "" | | ????????????? ????????## ##??##/######## + "" | | ????????????????????????# #????# #??????# # | | ????????????????????????# ???? ??? # | | ????????????????????????# ???#####?######+##### | | ????????????????????????# ?????????????? ???# | | ????????????????????????# ????????????? """???# | | ???????????????????????? ??????????? """???# | | ???????????????????????? ??????????# """???# | | ??????????????????????? ??????????# ???# | +----------------------------------------------------+ Best States ------------- Heat Dissipation 38 Energy Generation 12 Energy Capacity 265 Matter Stores 285 Matter Capacity 450 Sight Range 16 Robot Scan Range 14 Terrain Scan Density 10 Evasion (%) 55 Recoil Reduction 2 Item Schematics ----------------- None Robot Schematics ------------------ None Fabricated ------------ Nothing Alien Tech Used ----------------- None Achievements -------------- None Challenges ------------ None Game ------ Seed PointyStasisBiocell Manual? 0 Play Time 00:21:22 Cumulative 6.6 hours Start 2024.07.06 @ 18:36:45 End 2024.07.06 @ 19:09:58 Sessions 1 Manual Loads 0 Difficulty Rogue Special Mode None Game No. 10 Rogue 7 Adventurer 3 Explorer 0 Win Type - Total 0 Types 0/0/0/0/0/0/0/0/0 Lore% 8 Gallery% 10 Achievement% 8 Wizard Run 0 Options --------- Layout 0 ASCII 0 Keyboard 0 Movement Arrows Keybinds 0 Fullscreen 1 Font 18/SmallcapsGlow Map View 38x25 Zoom Use 100% Tactical HUD 1 Map Filters NONE Filters NONE Steam 1 RUN: 6f466367-b024-4ff2-b1b4-caa10ff1e5aa